bitfinex/quotes_SOLUSD_20251031
["timestamp","ask_amount","ask_price","bid_price","bid_amount"]
[1761900339475,0.68,186.09,186.06,6.04461034]
[1761900341266,0.68,186.09,186.06,5.37461034]
[1761900341467,0.68,186.09,186.04,90.33722744]
[1761900343272,0.68,186.09,186.06,5.37461034]
[1761900344355,0.1,186.1,186.07,0.67]
[1761900344590,0.78,186.1,186.07,0.67]
[1761900344871,0.78,186.1,186.07,2.67020177]
[1761900345176,4.02501865,186.09,186.05,2.00020177]
[1761900345472,8.15372223,186.1,186.05,5.37465346]
[1761900345674,4.70519844,186.09,186.05,5.37465346]
[1761900345874,0.68,186.09,186.05,5.37465346]
[1761900346172,0.68,186.09,186.05,6.04465346]
[1761900346586,0.68,186.09,186.05,67.74465346]
[1761900347072,0.68,186.09,186.06,0.67]
[1761900348278,0.68,186.09,186.07,5.37432149]
[1761900348767,0.78,186.1,186.07,5.37432149]
[1761900349076,0.78,186.1,186.08,0.67]
[1761900349077,4.02973537,186.09,186.08,0.67]
[1761900350064,4.02973537,186.09,186.08,2.67020177]
[1761900350256,4.02973537,186.09,186.08,8.04423444]
[1761900351867,4.0334213,186.09,186.08,8.04423444]
[1761900352380,4.0334213,186.09,186.08,69.74423444]
[1761900355655,4.0334213,186.09,186.08,69.07423444]
[1761900355858,4.0334213,186.09,186.08,67.07403267]
[1761900356373,4.0334213,186.09,186.08,67.74403267]
[1761900356580,4.0334213,186.09,186.08,69.74423444]
[1761900360271,4.0334213,186.09,186.08,67.74403267]
[1761900360476,4.0334213,186.09,186.08,67.07403267]
[1761900360670,4.6934213,186.09,186.08,61.7]
[1761900362087,4.0334213,186.09,186.08,67.07403267]
[1761900362279,4.0334213,186.09,186.08,69.73423444]
[1761900362479,0.1,186.1,186.08,79.52306213]
[1761900362782,0.1,186.1,186.09,2.66020177]
[1761900363886,0.1,186.1,186.09,8.03394565]
[1761900364286,0.1,186.1,186.09,69.73394565]
[1761900366088,0.1,186.1,186.09,79.52277334]
[1761900367898,4.78876755,186.1,186.09,61.7]
[1761900368269,6.78896932,186.1,186.09,61.7]
[1761900368975,12.16247544,186.1,186.05,67.07467998]
[1761900369289,4.68876755,186.09,186.05,67.07467998]
[1761900369493,2.66020177,186.09,186.05,67.07467998]
[1761900369670,0.66,186.08,186.05,67.07467998]
[1761900371975,0.66,186.08,186.05,67.73467998]
[1761900372393,0.66,186.08,186.05,67.07467998]
[1761900372594,0.1,186.1,186.06,0.66]
[1761900372928,0.1,186.1,186.07,2.00020177]
[1761900373397,0.1,186.1,186.08,2.00020177]
[1761900373771,0.1,186.1,186.09,5.37374388]
[1761900376195,4.12849319,186.1,186.09,67.07374388]
[1761900376378,0.1,186.1,186.09,67.07374388]
[1761900377479,0.1,186.1,186.09,70.85762296]
[1761900378302,0.1,186.1,186.09,70.19762296]
[1761900378986,0.1,186.1,186.09,67.07374388]
[1761900379386,0.1,186.1,186.09,67.73374388]
[1761900379591,0.1,186.1,186.09,70.85762296]
[1761900382489,0.1,186.1,186.09,67.07374388]
[1761900384101,3.88387908,186.1,186.09,61.7]
[1761900384401,7.91113595,186.1,186.09,61.7]
[1761900384790,7.91113595,186.1,186.06,67.07456784]
[1761900385103,3.78387908,186.09,186.06,67.07456784]
[1761900385603,3.78387908,186.09,186.04,17.2212307]
[1761900385604,0.66,186.08,186.04,62.36]
[1761900386402,0.66,186.08,186.05,5.37474987]
[1761900387191,3.12387908,186.06,186.01,61.7]
[1761900387398,4.02885081,186.05,186.01,67.07592053]
[1761900387599,3.12387908,186.03,186.01,67.07592053]
[1761900388311,3.12387908,186.03,185.99,6.03636389]
[1761900388312,0.66,186.02,185.99,6.03636389]
[1761900388486,3.78387908,186.02,185.97,6.03700805]
[1761900388798,3.12387908,186.01,185.97,6.03700805]
[1761900388974,3.84387908,186.01,185.97,0.66]
[1761900389179,0.72,186.02,185.97,0.66]
[1761900389483,3.84387908,186.02,185.97,0.66]
[1761900389689,3.12387908,186.01,185.97,6.03705722]
[1761900390007,0.72,186.0,185.97,5.37705722]
[1761900390305,0.72,186.0,185.97,6.09705722]
[1761900390612,0.72,186.0,185.96,5.37747647]
[1761900390613,3.84387908,186.0,185.96,5.37747647]
[1761900390784,3.84387908,186.0,185.96,6.09747647]
[1761900391485,3.12387908,186.0,185.96,6.09747647]
[1761900391714,0.72,185.99,185.95,6.09778972]
[1761900392099,3.84387908,186.0,185.96,0.72]
[1761900392719,0.72,185.99,185.96,0.72]
[1761900392915,0.72,185.99,185.95,8.5016688]
[1761900393113,0.72,185.99,185.92,5.37554321]
[1761900393114,3.12387908,185.96,185.92,0.72]
[1761900393413,0.72,185.97,185.92,6.09838555]
[1761900393591,0.72,185.96,185.92,6.09838555]
[1761900394505,3.84387908,185.96,185.92,67.79838555]
[1761900395025,0.72,185.95,185.92,67.07838555]
[1761900400114,3.12387908,185.96,185.92,67.79838555]
[1761900400420,0.72,185.95,185.92,67.07838555]
[1761900400629,0.72,185.95,185.92,70.20226463]
[1761900401003,0.72,185.95,185.92,67.07838555]
[1761900401309,0.72,185.99,185.94,3.12387908]
[1761900401506,0.72,185.99,185.96,3.12387908]
[1761900401706,0.72,185.99,185.96,64.82387908]
[1761900401919,0.72,185.99,185.96,61.7]
[1761900402427,0.72,185.99,185.96,67.07746801]
[1761900403405,3.12387908,185.97,185.96,61.7]
[1761900403916,3.84387908,185.97,185.96,61.7]
[1761900405232,3.84387908,185.97,185.94,5.37800476]
[1761900405233,3.84387908,185.97,185.93,5.3783682]
[1761900405527,0.72,185.96,185.93,5.3783682]
[1761900406333,9.78882769,186.07,185.95,3.12387908]
[1761900406509,0.72,186.04,185.99,3.12387908]
[1761900406829,0.72,186.04,185.96,9.78882769]
[1761900407233,0.72,186.04,186.01,3.12387908]
[1761900407433,0.72,186.04,186.01,8.49992866]
[1761900407735,3.12387908,186.06,186.01,9.21992866]
[1761900407953,0.72,186.06,186.02,3.84387908]
[1761900408235,0.72,186.05,186.02,3.12387908]
[1761900409209,0.72,186.05,186.02,8.49942566]
[1761900409410,0.72,186.05,186.02,9.21942566]
[1761900409710,8.49805156,186.08,186.02,9.21942566]
[1761900409910,3.84387908,186.07,186.02,9.21942566]
[1761900410344,0.72,186.06,186.02,9.21942566]
[1761900410708,0.72,186.06,186.02,3.84387908]
[1761900410913,3.84387908,186.06,186.01,3.12387908]
[1761900411334,0.72,186.05,186.01,3.84387908]
[1761900411636,0.72,186.05,186.0,8.50015588]
[1761900411839,3.84387908,186.05,186.0,9.22015588]
[1761900412356,0.72,186.04,186.0,9.22015588]
[1761900412634,0.72,186.04,186.0,70.92015588]
[1761900413837,3.84387908,186.06,186.01,3.84387908]
[1761900414019,3.12387908,186.06,186.01,3.84387908]
[1761900414224,0.72,186.05,186.01,3.84387908]
[1761900414533,0.72,186.05,186.01,6.09597917]
[1761900414742,3.84387908,186.05,186.01,5.37597917]
[1761900414930,0.72,186.07,186.03,3.12387908]
[1761900415129,0.72,186.08,186.03,3.12387908]
[1761900415332,0.72,186.08,186.03,65.54387908]
[1761900415746,0.72,186.08,186.04,0.72]
[1761900416316,0.72,186.08,186.04,6.09513419]
[1761900416843,3.84387908,186.08,186.04,6.09513419]
[1761900417023,3.84387908,186.08,186.03,61.7]
[1761900417223,0.72,186.07,186.03,65.54387908]
[1761900418348,0.72,186.07,186.03,70.9193156]
[1761900418724,0.72,186.07,186.03,67.79543652]
[1761900418925,0.72,186.07,186.03,62.42]
[1761900419231,0.72,186.07,186.03,70.91924241]
[1761900420824,3.84387908,186.07,186.03,67.79536333]
[1761900421949,0.72,186.07,186.03,67.79536333]
[1761900422245,3.84387908,186.07,186.03,67.79536333]
[1761900423246,3.82387908,186.06,186.03,61.7]
[1761900423428,3.12387908,186.07,186.03,62.41]
[1761900423634,3.12387908,186.07,186.03,67.78544134]
[1761900423936,0.7,186.06,186.03,61.7]
[1761900424738,3.12387908,186.05,186.03,61.7]
[1761900424936,3.12387908,186.04,186.03,61.7]
[1761900425244,3.12387908,186.04,185.99,3.12387908]
[1761900425245,3.12387908,186.04,185.99,67.07639666]
[1761900425458,5.37468738,186.06,185.99,61.7]
[1761900425459,3.82387908,186.03,185.99,61.7]
[1761900425657,3.82387908,186.03,185.99,62.41]
[1761900425830,3.82387908,186.03,185.99,67.78656034]
[1761900426150,0.7,186.03,186.0,0.71]
[1761900427047,0.7,186.03,185.99,70.20043942]
[1761900427235,0.7,186.03,185.99,70.91043942]
[1761900428136,0.7,186.03,185.99,67.78656034]
[1761900428450,3.82387908,186.03,186.0,0.71]
[1761900428752,3.82387908,186.03,186.0,62.41]
[1761900428945,0.7,186.03,186.0,62.41]
[1761900429127,0.7,186.03,186.0,61.7]
[1761900432752,3.82387908,186.03,186.0,61.7]
[1761900433458,0.7,186.02,186.0,61.7]
[1761900434042,3.12387908,186.03,186.0,61.7]
[1761900434340,3.82387908,186.03,186.0,61.7]
[1761900434542,3.82387908,186.03,185.99,67.78650395]
[1761900435469,3.12387908,186.05,186.0,3.12387908]
[1761900435637,3.82387908,186.08,186.03,3.12387908]
[1761900435840,7.84353976,186.07,186.01,3.83387908]
[1761900436047,3.82387908,186.07,186.01,3.83387908]
[1761900436247,0.7,186.06,186.01,3.83387908]
[1761900436446,0.7,186.06,186.01,64.82387908]
[1761900436650,0.7,186.06,185.98,62.41]
[1761900436651,3.12387908,186.02,185.98,62.41]
[1761900436846,3.12387908,186.01,185.98,0.71]
[1761900437461,3.12387908,186.01,185.98,6.0868069]
[1761900437640,3.83387908,186.01,185.98,6.0868069]
[1761900438140,3.12387908,186.01,185.98,6.0868069]
[1761900438363,3.83387908,186.02,185.98,6.0868069]
[1761900438957,0.71,186.01,185.98,6.0868069]
[1761900439543,0.71,186.01,185.98,5.3768069]
[1761900439747,2.00164424,185.99,185.96,61.7]
[1761900439946,2.00164424,185.98,185.95,5.37775351]
[1761900440446,2.00164424,185.98,185.95,6.07775351]
[1761900441669,2.00164424,185.98,185.95,5.37775351]
[1761900441965,2.00164424,185.98,185.96,0.7]
[1761900442555,2.00164424,185.98,185.95,6.07775351]
[1761900443370,2.00164424,185.98,185.95,5.37775351]
[1761900443557,2.00164424,185.98,185.96,0.7]
[1761900443758,2.00164424,185.98,185.95,5.37775351]
[1761900444060,2.71164424,185.98,185.94,67.07801561]
[1761900444244,2.71164424,185.98,185.94,67.77801561]
[1761900444762,2.71164424,185.98,185.95,0.7]
[1761900445345,2.00164424,185.98,185.95,0.7]
[1761900445744,2.00164424,185.98,185.95,6.07772502]
[1761900445971,2.71164424,185.98,185.95,6.07772502]
[1761900446160,2.71164424,185.98,185.95,0.7]
[1761900446681,2.00164424,185.99,185.95,67.77778388]
[1761900446978,2.71164424,186.02,185.96,2.00164424]
[1761900447283,2.71164424,186.02,185.96,64.40164424]
[1761900447576,2.71164424,186.02,185.97,0.7]
[1761900448069,20.592,186.03,185.97,0.7]
[1761900448070,2.71164424,186.01,185.98,5.37692224]
[1761900448459,2.71164424,186.01,185.98,6.07692224]
[1761900448862,25.96748124,186.03,185.96,67.74732851]
[1761900448863,2.70164424,186.0,185.96,67.74732851]
[1761900449173,2.00164424,186.0,185.97,0.67]
[1761900449465,2.70164424,186.0,185.97,0.67]
[1761900449772,2.00164424,186.0,185.97,0.67]
[1761900450161,2.70164424,186.01,185.97,6.04715974]
[1761900450354,21.292,186.03,185.97,8.04880398]
[1761900450556,2.00164424,186.02,185.98,0.67]
[1761900451062,2.70164424,186.02,185.98,0.67]
[1761900451381,2.70164424,186.01,185.97,6.04715974]
[1761900451975,2.70164424,186.0,185.97,6.04715974]
[1761900452153,2.70164424,186.0,185.97,67.74715974]
[1761900452352,2.00164424,186.0,185.97,67.74715974]
[1761900452547,2.00164424,186.0,185.97,67.07715974]
[1761900452753,2.00164424,186.01,185.97,67.74715974]
[1761900452985,2.70164424,186.01,185.97,67.74715974]
[1761900454069,2.00164424,186.01,185.97,67.74715974]
[1761900454269,2.70164424,186.01,185.97,67.74715974]
[1761900454478,2.70164424,186.0,185.97,67.74715974]
[1761900454673,2.70164424,186.0,185.97,61.7]
[1761900454968,2.00164424,185.99,185.97,61.7]
[1761900455276,2.70164424,185.99,185.97,61.7]
[1761900455488,0.7,185.98,185.97,61.7]
[1761900455776,2.00164424,185.99,185.94,69.07966989]
[1761900455959,2.00164424,185.99,185.96,0.67]
[1761900456161,2.70164424,186.02,185.96,2.67164424]
[1761900456478,4.02644752,186.01,185.96,64.37164424]
[1761900456662,2.70164424,186.02,185.97,6.04721137]
[1761900456862,4.02644667,186.01,185.97,6.04721137]
[1761900457074,2.70164424,186.02,185.98,0.67]
[1761900457581,0.7,186.05,185.98,64.37164424]
[1761900457785,4.02617029,186.04,185.99,2.00164424]
[1761900457955,4.02617029,186.03,186.0,0.67]
[1761900458155,2.00164424,186.06,186.0,64.37164424]
[1761900458357,4.02601255,186.05,186.01,0.67]
[1761900458555,4.02601255,186.04,186.02,5.37576604]
[1761900458856,4.32341268,186.08,186.02,5.37576604]
[1761900459063,4.0255628,186.07,186.03,0.67]
[1761900459255,4.0255628,186.06,186.03,0.67]
[1761900459478,8.07568063,186.08,186.03,0.67]
[1761900459786,4.72542647,186.07,186.03,0.67]
[1761900459953,4.02542647,186.06,186.03,0.67]
[1761900460154,2.70164424,186.07,186.03,0.67]
[1761900460354,2.00164424,186.07,186.03,0.67]
[1761900460588,2.70164424,186.07,186.03,0.67]
[1761900461787,0.7,186.07,186.04,5.37518813]
[1761900462294,0.7,186.07,186.04,6.04518813]
[1761900463486,2.00164424,186.08,186.04,6.04518813]
[1761900463793,5.47347902,186.1,186.05,2.67164424]
[1761900463794,0.1,186.1,186.05,2.67164424]
[1761900463980,0.1,186.1,186.07,2.00164424]
[1761900464160,0.1,186.1,186.08,2.00164424]
[1761900464367,0.1,186.1,186.09,0.67]
[1761900464888,0.1,186.1,186.09,2.67164424]
[1761900465390,0.1,186.1,186.09,8.04538812]
[1761900468400,0.1,186.1,186.09,18.37159019]
[1761900468798,0.1,186.1,186.09,17.83421581]
[1761900471312,0.1,186.1,186.09,38.42621581]
[1761900471487,0.1,186.1,186.09,38.96359019]
[1761900471891,0.1,186.12,186.1,9.78882769]
[1761900472216,0.1,186.12,186.11,33.58978857]
[1761900473796,0.1,186.12,186.11,38.96295497]
[1761900474315,0.1,186.12,186.11,46.96953193]
[1761900474914,0.1,186.15,186.12,9.78882769]
[1761900475217,0.1,186.15,186.14,11.79047193]
[1761900475424,0.1,186.15,186.14,12.46047193]
[1761900476408,0.1,186.15,186.14,15.8311281]
[1761900476614,0.1,186.15,186.14,17.83277234]
[1761900478497,0.1,186.15,186.14,79.53277234]
[1761900479110,0.1,186.17,186.16,9.78882769]
[1761900479313,0.1,186.17,186.16,74.21047193]
[1761900479814,0.1,186.17,186.16,63.70164424]
[1761900479994,0.1,186.17,186.16,61.7]
[1761900480195,0.1,186.17,186.16,63.70164424]
[1761900480606,0.1,186.17,186.16,69.07336748]
[1761900480805,0.1,186.17,186.16,63.70164424]
[1761900481003,0.1,186.17,186.16,69.79336748]
[1761900481214,0.1,186.17,186.16,69.07336748]
[1761900482127,0.1,186.17,186.16,69.79336748]
[1761900483033,0.8,186.17,186.16,69.07336748]
[1761900483326,0.1,186.17,186.16,69.07336748]
[1761900484108,0.1,186.17,186.16,69.79336748]
[1761900484425,0.1,186.18,186.16,69.79336748]
[1761900484604,0.1,186.18,186.17,2.72164424]
[1761900484810,0.1,186.18,186.17,8.09307895]
[1761900485108,1e-08,186.18,186.17,17.88190664]
[1761900485325,1e-08,186.19,186.18,10.50882769]
[1761900485563,0.1,186.21,186.18,12.51047193]
[1761900485826,0.1,186.21,186.2,2.00164424]
[1761900486521,0.1,186.21,186.2,8.09221352]
[1761900486718,1e-08,186.21,186.2,25.88761817]
[1761900487021,1e-08,186.21,186.2,17.88104121]
[1761900489026,1e-08,186.21,186.2,25.88761817]
[1761900490006,1e-08,186.21,186.2,46.47961817]
[1761900490909,1e-08,186.22,186.21,20.08137203]
[1761900491101,1e-08,186.22,186.21,21.33840011]
[1761900491304,1e-08,186.25,186.24,30.38082769]
[1761900491514,1e-08,186.25,186.24,33.10247193]
[1761900492431,1e-08,186.25,186.24,38.47188773]
[1761900493229,0.70000001,186.25,186.21,0.53702808]
[1761900493429,0.70000001,186.25,186.19,5.37059198]
[1761900493723,0.70000001,186.25,186.23,2.00164424]
[1761900494512,0.70000001,186.25,186.24,2.00164424]
[1761900494710,1e-08,186.25,186.24,2.00164424]
[1761900495613,0.70000001,186.25,186.24,2.00164424]
[1761900495828,0.70000001,186.25,186.23,2.00164424]
[1761900496521,0.70000001,186.25,186.17,0.82146661]
[1761900496522,7.37106004,186.24,186.14,5.37230041]
[1761900496731,2.00164424,186.22,186.16,2.00164424]
[1761900497119,0.7,186.21,186.17,2.00164424]
[1761900498332,0.7,186.21,186.15,2.00164424]
[1761900498514,2.70164424,186.21,186.16,5.37172324]
[1761900498716,0.66,186.2,186.15,7.37362442]
[1761900498932,0.66,186.2,186.16,2.00164424]
[1761900499332,2.00164424,186.19,186.09,0.7]
[1761900499524,0.66,186.2,186.1,2.00164424]
[1761900499525,2.00164424,186.17,186.1,2.00164424]
[1761900499832,2.00164424,186.17,186.11,2.00164424]
[1761900500020,0.66,186.16,186.11,2.00164424]
[1761900500732,0.66,186.16,186.11,7.37462723]
[1761900501324,0.66,186.16,186.11,8.49584494]
[1761900501526,0.66,186.16,186.11,5.37298299]
[1761900501723,3.78286195,186.16,186.11,5.37298299]
[1761900501919,3.78286195,186.16,186.1,3.12286195]
[1761900502241,0.66,186.15,186.1,3.12286195]
[1761900502728,0.66,186.18,186.12,3.12286195]
[1761900502938,3.12286195,186.17,186.11,0.7]
[1761900503317,3.78286195,186.17,186.11,0.7]
[1761900503632,3.78286195,186.17,186.1,21.92991811]
[1761900503633,3.12286195,186.15,186.1,6.07341834]
[1761900504429,3.78286195,186.15,186.11,0.7]
[1761900504637,3.78286195,186.14,186.1,5.37341834]
[1761900504838,3.12286195,186.11,186.05,5.37467956]
[1761900505014,3.12286195,186.07,186.02,0.7]
[1761900505335,3.12286195,186.06,186.01,5.37605505]
[1761900505533,3.12286195,186.05,186.01,5.37605505]
[1761900505833,3.12286195,186.06,186.01,6.07605505]
[1761900506225,3.78286195,186.06,186.01,6.07605505]
[1761900507819,0.66,186.06,186.01,9.198917]
[1761900508021,3.78286195,186.05,186.01,5.37605505]
[1761900508331,3.12286195,186.04,186.0,5.37632267]
[1761900508537,18.80709295,186.1,185.99,0.2]
[1761900508538,3.12286195,186.02,185.99,0.2]
[1761900508741,0.66,186.01,185.99,0.2]
[1761900509442,0.66,186.01,185.99,5.57643974]
[1761900509821,3.12286195,186.03,185.99,5.57643974]
[1761900510025,3.78286195,186.03,185.99,19.01802262]
[1761900510331,0.66,186.03,185.99,22.85088457]
[1761900510518,0.66,186.03,185.99,19.01802262]
[1761900510719,0.66,186.03,186.0,3.12286195]
[1761900510936,0.66,186.03,186.01,5.37605505]
[1761900511318,0.66,186.05,186.01,5.37605505]
[1761900511522,0.66,186.04,186.01,8.498917]
[1761900512025,0.66,186.04,186.01,5.37605505]
[1761900512442,0.66,186.04,186.0,3.12286195]
[1761900512737,3.78286195,186.04,185.99,8.6992271]
[1761900513242,0.66,186.03,185.99,8.6992271]
[1761900514339,0.66,186.03,186.0,3.12286195]
[1761900514940,0.66,186.03,186.01,5.37605505]
[1761900515643,0.66,186.05,186.01,5.37605505]
[1761900515840,0.66,186.05,186.01,8.498917]
[1761900516230,0.66,186.05,186.02,3.12286195]
[1761900517040,0.66,186.05,186.03,5.37547707]
[1761900518124,0.66,186.07,186.04,3.12286195]
[1761900519221,0.66,186.07,186.04,8.49779501]
[1761900520037,0.66,186.07,186.04,5.37493306]
[1761900522653,20.592,186.1,186.04,70.19779501]
[1761900522851,0.66,186.1,186.08,3.12286195]
[1761900523153,0.66,186.12,186.09,3.12286195]
[1761900523357,0.66,186.12,186.08,3.12286195]
[1761900523531,0.66,186.12,186.07,8.49718344]
[1761900523852,0.66,186.12,186.07,5.37432149]
[1761900524054,0.66,186.12,186.07,6.08432149]
[1761900524546,3.78286195,186.12,186.07,6.08432149]
[1761900525451,0.66,186.11,186.07,6.08432149]
[1761900527543,0.66,186.11,186.06,3.12286195]
[1761900527730,0.66,186.11,186.07,0.71]
[1761900528336,0.66,186.11,186.07,65.53286195]
[1761900528545,0.66,186.11,186.07,64.82286195]
[1761900528749,0.66,186.11,186.07,65.53286195]
[1761900529454,0.66,186.11,186.08,5.37403267]
[1761900530160,0.66,186.14,186.09,3.83286195]
[1761900530659,0.66,186.14,186.1,3.12286195]
[1761900531464,0.66,186.14,186.11,5.3731664]
[1761900533549,0.66,186.14,186.1,5.37345513]
[1761900534972,3.78286195,186.14,186.1,5.37345513]
[1761900535272,0.66,186.13,186.1,5.37345513]
[1761900536381,20.592,186.17,186.12,3.12286195]
[1761900536669,0.66,186.16,186.12,3.12286195]
[1761900536973,3.78286195,186.16,186.1,67.78345513]
[1761900537150,0.66,186.16,186.11,3.12286195]
[1761900537548,0.66,186.16,186.11,3.83286195]
[1761900537746,0.66,186.16,186.11,3.12286195]
[1761900537946,0.66,186.16,186.12,3.12286195]
[1761900539166,0.66,186.16,186.11,8.49590246]
[1761900539349,0.66,186.16,186.11,6.03304051]
[1761900539546,0.66,186.16,186.11,9.15590246]
[1761900539958,0.66,186.16,186.11,3.78286195]
[1761900540276,0.66,186.16,186.11,70.85598365]
[1761900542872,0.68,186.2,186.17,3.78286195]
[1761900543069,4.0068237,186.21,186.17,3.78286195]
[1761900543372,0.68,186.24,186.2,3.12286195]
[1761900543579,0.68,186.24,186.2,3.78286195]
[1761900543878,0.68,186.24,186.21,3.12286195]
[1761900544079,0.68,186.24,186.16,20.592]
[1761900544281,4.007404,186.23,186.19,3.12286195]
[1761900544483,0.68,186.24,186.19,3.12286195]
[1761900544657,0.68,186.24,186.19,9.1536702]
[1761900545269,4.00475541,186.24,186.21,3.12286195]
[1761900545594,1e-08,186.25,186.22,3.12286195]
[1761900545765,4.68463538,186.25,186.22,3.12286195]
[1761900546280,0.68000001,186.25,186.22,3.12286195]
[1761900547368,0.68000001,186.25,186.21,9.15304415]
[1761900547676,3.12286195,186.22,186.16,21.252]
[1761900547875,3.12286195,186.21,186.16,8.49439311]
[1761900548078,0.68,186.24,186.17,0.66]
[1761900548276,0.68,186.24,186.2,3.12286195]
[1761900548779,1e-08,186.25,186.23,3.12286195]
[1761900549082,1e-08,186.25,186.21,0.66]
[1761900549083,0.68000001,186.25,186.21,3.78286195]
[1761900549586,0.68000001,186.25,186.2,3.12286195]
[1761900549766,3.80286196,186.25,186.2,3.12286195]
[1761900550077,3.80286196,186.25,186.19,3.78286195]
[1761900550280,0.68,186.24,186.21,3.12286195]
[1761900550471,0.68,186.24,186.19,3.12286195]
[1761900550671,0.68,186.24,186.19,9.15371477]
[1761900550868,0.68,186.24,186.2,3.12286195]
[1761900551884,0.68,186.24,186.2,70.85340586]
[1761900552085,0.68,186.24,186.21,3.12286195]
[1761900552462,1e-08,186.25,186.21,3.78286195]
[1761900552675,1e-08,186.25,186.22,3.12286195]
[1761900553000,0.68000001,186.25,186.22,3.12286195]
[1761900553663,1e-08,186.25,186.23,9.15253266]
[1761900553861,1e-08,186.25,186.24,3.12286195]
[1761900554062,1e-08,186.25,186.24,0.66]
[1761900554266,1e-08,186.25,186.24,3.78286195]
[1761900554478,1e-08,186.25,186.24,75.27168964]
[1761900555890,1e-08,186.25,186.24,80.64110544]
[1761900558890,0.71,186.36,186.28,9.78882769]
[1761900559080,0.71,186.36,186.33,3.12286195]
[1761900559279,0.71,186.36,186.32,3.12286195]
[1761900560880,9.19889996,186.36,186.29,25.95972632]
[1761900561082,9.19889996,186.36,186.3,3.12286195]
[1761900561265,0.71,186.35,186.31,1.99442403]
[1761900562582,0.71,186.35,186.31,2.65442403]
[1761900562783,0.71,186.35,186.31,1.99442403]
[1761900563284,0.71,186.35,186.31,8.02179834]
[1761900563480,0.71,186.35,186.31,2.65442403]
[1761900563670,0.71,186.35,186.31,7.36181344]
[1761900563865,0.71,186.35,186.31,8.02181344]
[1761900565278,0.71,186.35,186.32,1.99442403]
[1761900565787,0.71,186.35,186.31,8.02181344]
[1761900566294,0.1,186.4,186.32,1.99442403]
[1761900566493,2.70442403,186.39,186.34,1.99442403]
[1761900566883,0.71,186.38,186.34,1.99442403]
[1761900568115,6.07555634,186.38,186.33,1.99442403]
[1761900568273,8.06998037,186.38,186.33,1.99442403]
[1761900568474,0.71,186.37,186.31,62.36]
[1761900568786,0.71,186.37,186.31,1.99442403]
[1761900568990,0.71,186.37,186.32,1.99442403]
[1761900569195,2.70442403,186.37,186.31,1.99442403]
[1761900569377,1.99442403,186.36,186.31,1.99442403]
[1761900569572,0.69,186.36,186.31,63.69442403]
[1761900569778,0.69,186.35,186.31,64.35442403]
[1761900569980,0.69,186.35,186.32,1.99442403]
[1761900570175,0.1,186.4,186.34,1.99442403]
[1761900570406,0.1,186.4,186.39,1.99442403]
[1761900570703,0.1,186.4,186.34,9.78882769]
[1761900570880,0.1,186.4,186.38,1.99442403]
[1761900571085,0.1,186.4,186.35,0.66]
[1761900571290,0.1,186.4,186.35,21.78862463]
[1761900571494,0.1,186.4,186.39,1.99442403]
[1761900572297,0.1,186.4,186.39,8.01951872]
[1761900574798,0.1,186.4,186.36,5.36595836]
[1761900575001,0.79,186.4,186.37,1.99442403]
[1761900575207,0.79,186.4,186.36,1.99442403]
[1761900575503,0.79,186.4,186.36,2.65442403]
[1761900575802,0.79,186.4,186.34,0.66]
[1761900575998,0.79,186.4,186.35,1.99442403]
[1761900576503,0.79,186.4,186.36,1.99442403]
[1761900576902,0.79,186.4,186.37,1.99442403]
[1761900578796,0.79,186.4,186.35,0.66]
[1761900578992,0.79,186.4,186.37,1.99442403]
[1761900579312,0.79,186.4,186.35,6.02621256]
[1761900579489,0.79,186.4,186.37,1.99442403]
[1761900579690,0.79,186.4,186.36,1.99442403]
[1761900580711,0.79,186.4,186.34,6.02651112]
[1761900580917,0.79,186.4,186.35,1.99442403]
[1761900581119,0.79,186.4,186.37,1.99442403]
[1761900581316,0.79,186.4,186.36,1.99442403]
[1761900584421,0.79,186.4,186.35,6.02609411]
[1761900584422,0.1,186.4,186.37,0.66]
[1761900584796,0.1,186.4,186.39,1.99442403]